bitfinex/quotes_ETHUSD_20240916
["timestamp","ask_amount","ask_price","bid_price","bid_amount"]
[1726487738061,4.32231,2313.6,2313.3,2.42287188]
[1726487738243,9.09663874,2313.7,2313.4,3.34886432]
[1726487738552,4.32228,2313.6,2313.3,2.42287188]
[1726487738755,4.77441874,2313.7,2313.4,1.33952059]
[1726487738922,0.45230874,2313.7,2313.5,2.3808]
[1726487739462,0.45230874,2313.7,2313.6,0.11872988]
[1726487739628,0.45230874,2313.7,2313.6,0.47274147]
[1726487740723,0.45230874,2313.7,2313.6,1.81226763]
[1726487740949,0.45230874,2313.7,2313.6,0.47274147]
[1726487741337,0.45230874,2313.7,2313.6,1.81231528]
[1726487741678,0.45230874,2313.7,2313.6,0.47274147]
[1726487742526,0.45230874,2313.7,2313.6,1.81254754]
[1726487744072,0.45230874,2313.7,2313.6,0.47274147]
[1726487744231,0.45230874,2313.7,2313.6,1.81311252]
[1726487746982,0.45230874,2313.7,2313.6,3.82399265]
[1726487747143,0.45230874,2313.7,2313.6,1.81311252]
[1726487748353,0.45230874,2313.7,2313.6,1.45910093]
[1726487748866,0.45230874,2313.7,2313.6,1.45925085]
[1726487752980,0.45230874,2313.7,2313.6,0.11872988]
[1726487753380,0.45230874,2313.7,2313.4,5.2279194]
[1726487753677,0.45230874,2313.7,2313.6,0.11849748]
[1726487753885,0.45230874,2313.7,2313.4,4.3225]
[1726487754083,0.45230874,2313.7,2313.6,0.11849748]
[1726487754240,0.45230874,2313.7,2313.4,4.3225]
[1726487754580,0.45230874,2313.7,2313.5,1.33849209]
[1726487754775,0.45230874,2313.7,2313.5,0.11849748]
[1726487762392,4.77438874,2313.7,2313.5,0.11849748]
[1726487762689,0.47743887,2313.6,2313.5,0.11849748]
[1726487762847,4.79969887,2313.6,2313.5,0.11849748]
[1726487763175,4.79969887,2313.6,2313.5,0.11853788]
[1726487763544,4.79969887,2313.6,2313.2,5.2284094]
[1726487763545,7.79969887,2313.6,2313.2,0.9054194]
[1726487763741,7.79969887,2313.6,2313.3,3.4651509]
[1726487763742,3.0,2313.6,2313.3,3.4651509]
[1726487763984,3.0,2313.6,2313.3,0.11853788]
[1726487765346,3.0,2313.6,2313.4,2.3147]
[1726487765692,7.32229,2313.6,2313.4,2.3147]
[1726487765860,7.32229,2313.6,2313.5,0.11853788]
[1726487766581,3.0,2313.6,2313.5,0.11853788]
[1726487768657,4.77438874,2313.7,2313.5,0.11853788]
[1726487768658,0.45230874,2313.7,2313.5,0.11853788]
[1726487768873,0.45230874,2313.7,2313.5,0.88467761]
[1726487777788,0.45230874,2313.7,2313.5,0.11853788]
[1726487784813,4.32226,2313.6,2313.5,0.11853788]
[1726487784980,11.64452,2313.6,2313.5,0.11853788]
[1726487785317,4.32247,2313.5,2313.1,0.9054194]
[1726487785479,4.32281,2313.4,2313.2,1.33915065]
[1726487785679,4.32281,2313.4,2313.1,0.9054194]
[1726487785878,4.32281,2313.4,2313.2,1.33919222]
[1726487786186,4.77512825,2313.4,2313.0,0.9054194]
[1726487786392,4.77512825,2313.4,2313.1,3.34789313]
[1726487786621,4.77512825,2313.4,2313.0,0.9054194]
[1726487786924,4.77512825,2313.4,2313.1,3.34797083]
[1726487787234,4.77512825,2313.4,2313.0,5.2287994]
[1726487787530,4.77512825,2313.4,2313.1,3.34747628]
[1726487787732,4.77512825,2313.4,2313.0,0.9054194]
[1726487787887,4.32283,2313.3,2313.1,1.33901786]
[1726487788093,4.32283,2313.3,2312.9,0.9054194]
[1726487788323,4.32309,2313.2,2312.8,7.5686794]
[1726487788537,4.32309,2313.2,2312.9,3.34740575]
[1726487788692,4.32309,2313.2,2312.8,7.5686794]
[1726487788893,4.32309,2313.2,2312.9,3.34746031]
[1726487789093,4.32309,2313.2,2312.8,7.5686794]
[1726487789341,4.32309,2313.2,2312.9,3.34739992]
[1726487789620,8.64583,2313.3,2312.8,9.81618559]
[1726487789827,8.64583,2313.3,2312.9,5.20543]
[1726487790126,4.32283,2313.3,2313.0,1.33851254]
[1726487790327,8.64576,2313.3,2312.9,1.85901673]
[1726487790532,8.64576,2313.3,2312.8,9.51085992]
[1726487790890,4.77503825,2313.4,2312.9,0.08646462]
[1726487791097,4.32282,2313.3,2313.0,2.4624]
[1726487791421,4.32282,2313.3,2313.0,3.42576499]
[1726487791622,4.32282,2313.3,2313.1,1.33845847]
[1726487795329,4.32282,2313.3,2312.9,5.2289094]
[1726487796137,8.64575,2313.3,2312.9,5.2289094]
[1726487796322,4.32282,2313.3,2312.9,5.2289094]
[1726487796524,4.32282,2313.3,2312.9,6.74881159]
[1726487797341,4.32308,2313.2,2312.9,2.42532159]
[1726487799123,4.32308,2313.2,2313.0,0.11552618]
[1726487805935,4.3232,2313.1,2313.0,0.11552618]
[1726487806145,8.6464,2313.1,2313.0,0.11552618]
[1726487806351,13.06104,2313.1,2313.0,0.11552618]
[1726487806703,13.5133896,2313.1,2313.0,0.11552618]
[1726487809742,9.1901896,2313.1,2312.7,0.0165636]
[1726487810043,8.64732,2312.9,2312.8,0.11558683]
[1726487810339,4.32364,2312.9,2312.8,0.11558683]
[1726487810513,4.32364,2312.9,2312.7,0.0165636]
[1726487810715,4.32364,2312.9,2312.8,0.11558683]
[1726487811100,8.6473,2312.9,2312.7,0.0165636]
[1726487811338,8.6473,2312.9,2312.8,0.11558683]
[1726487811537,8.6473,2312.9,2312.7,0.0165636]
[1726487811736,4.32376,2312.8,2312.7,0.0165636]
[1726487812846,7.32376,2312.8,2312.7,0.0165636]
[1726487813360,12.19752,2312.8,2312.7,0.0165636]
[1726487814343,12.19752,2312.8,2312.7,0.1286689]
[1726487816422,7.32376,2312.8,2312.7,0.1286689]
[1726487818255,0.4523496,2313.1,2312.7,0.1121053]
[1726487818256,2.7619496,2313.1,2312.7,0.1121053]
[1726487818553,2.7619496,2313.1,2312.7,4.32394]
[1726487818554,4.7756296,2313.1,2312.7,4.32394]
[1726487818710,9.0989296,2313.1,2312.7,5.39164317]
[1726487818913,9.0989196,2313.1,2312.8,0.10836845]
[1726487819153,4.7756296,2313.1,2312.8,0.10836845]
[1726487819362,9.0989196,2313.1,2312.7,1.06770317]
[1726487819568,3.0,2313.0,2312.9,0.10836845]
[1726487819728,0.4523496,2313.1,2312.8,0.73341637]
[1726487819927,0.4523496,2313.1,2312.9,0.61410409]
[1726487820137,0.4523496,2313.1,2312.9,0.10836845]
[1726487821167,0.4523496,2313.1,2312.9,2.36636845]
[1726487821674,0.4523496,2313.1,2313.0,6.58138]
[1726487821877,0.4523496,2313.1,2313.0,8.52372052]
[1726487822063,0.4523496,2313.1,2313.0,8.63189687]
[1726487822389,0.4523496,2313.1,2313.0,10.00078519]
[1726487824058,0.4523496,2313.1,2313.0,5.67740519]
[1726487824392,0.4523496,2313.1,2313.0,3.73506467]
[1726487824752,0.4523496,2313.1,2313.0,0.10817635]
[1726487824988,0.4523496,2313.1,2312.8,7.39235637]
[1726487825144,0.4523496,2313.1,2312.9,0.10817635]
[1726487826276,0.4523496,2313.1,2312.9,4.43174635]
[1726487826472,0.4523496,2313.1,2313.0,1.37664432]
[1726487827183,0.4523496,2313.1,2313.0,1.48482067]
[1726487828760,0.4523496,2313.1,2313.0,10.00194119]
[1726487829081,0.4523496,2313.1,2313.0,8.62529687]
[1726487829493,4.32246,2313.5,2313.0,8.62529687]
[1726487829981,4.32246,2313.5,2313.1,4.32317]
[1726487829982,0.45236895,2313.5,2313.1,4.32317]
[1726487830187,0.45236895,2313.5,2313.2,2.3029]
[1726487830359,0.45236895,2313.5,2313.3,0.10817635]
[1726487831081,4.77483895,2313.5,2313.3,0.10817635]
[1726487831669,0.45236895,2313.5,2313.3,0.10817635]
[1726487832289,4.77492895,2313.5,2313.3,0.10817635]
[1726487832483,5.78503485,2313.5,2313.3,0.10817635]
[1726487833185,0.45236895,2313.5,2313.3,0.10817635]
[1726487835061,6.64904,2313.4,2313.3,0.10817635]
[1726487835261,14.52168,2313.4,2313.3,0.10817635]
[1726487835465,4.32304,2313.2,2312.8,2.3916]
[1726487835868,4.32304,2313.2,2312.9,0.09306604]
[1726487836999,10.19917,2313.4,2312.9,0.09306604]
[1726487837000,13.97196,2313.4,2312.9,0.09306604]
[1726487837512,4.32288,2313.3,2312.9,0.09306604]
[1726487838079,4.32325,2313.1,2312.9,0.09306604]
[1726487839194,4.32325,2313.1,2312.6,18.63512174]
[1726487839422,4.32325,2313.1,2312.7,1.427004]
[1726487839725,4.32325,2313.1,2312.7,0.09306604]
[1726487840329,10.97297,2313.1,2312.7,0.09306604]
[1726487840783,6.64965,2313.1,2312.7,0.09306604]
[1726487841634,6.64965,2313.1,2312.7,4.41700604]
[1726487841786,4.32325,2313.1,2312.7,4.97416359]
[1726487841997,4.32325,2313.1,2312.7,0.65022359]
[1726487843114,4.32325,2313.1,2312.7,4.97414359]
[1726487845598,4.32325,2313.1,2312.8,1.33414129]
[1726487845799,4.32325,2313.1,2312.7,4.88107755]
[1726487846001,4.32325,2313.1,2312.8,1.42721594]
[1726487846231,4.32325,2313.1,2312.8,0.09306604]
[1726487846436,4.32303,2313.2,2312.7,4.88107755]
[1726487846610,4.32303,2313.2,2312.8,2.8651729]
[1726487846811,4.32303,2313.2,2312.9,2.4203]
[1726487847198,4.32303,2313.2,2313.0,0.09306604]
[1726487849244,4.3232,2313.1,2313.0,0.09306604]
[1726487849634,4.3232,2313.1,2312.7,2.4823]
[1726487849837,4.3232,2313.1,2312.5,7.48596877]
[1726487849838,2.3264,2312.9,2312.5,7.48596877]
[1726487850143,4.32357,2312.9,2312.8,0.09024641]
[1726487850342,4.32357,2312.9,2312.5,6.58412]
[1726487850565,4.32357,2312.9,2312.8,0.09024641]
[1726487850730,4.32357,2312.9,2312.5,13.75254929]
[1726487850927,4.32357,2312.9,2312.8,0.08757974]
[1726487851137,4.32357,2312.9,2312.5,9.42830929]
[1726487851446,4.32357,2312.9,2312.6,3.3365592]
[1726487851649,4.32342,2313.0,2312.6,4.41166974]
[1726487851826,4.32342,2313.0,2312.6,5.68815659]
[1726487852030,10.97295,2313.1,2312.6,5.68815659]
[1726487852251,4.3234,2313.0,2312.6,5.68815659]
[1726487854473,4.32304,2313.2,2312.7,12.975744]
[1726487854660,4.32304,2313.2,2312.8,5.65836659]
[1726487854833,0.4523374,2313.3,2312.9,6.69049]
[1726487855038,0.4523374,2313.3,2313.0,0.08757974]
[1726487855969,4.7751774,2313.3,2313.0,0.08757974]
[1726487857473,0.4523374,2313.3,2313.0,4.41094974]
[1726487857669,0.4523374,2313.3,2313.0,5.52973969]
[1726487857907,0.4523374,2313.3,2313.1,2.3952]
[1726487858393,0.4523374,2313.3,2313.2,0.08786233]
[1726487860591,0.4523374,2313.3,2313.2,3.42534301]
[1726487860830,0.4523374,2313.3,2313.2,5.25528579]
[1726487861091,0.4523374,2313.3,2313.2,3.25281094]
[1726487861251,0.4523374,2313.3,2313.2,3.42577176]
[1726487862111,0.4523374,2313.3,2313.2,7.74878176]
[1726487862512,0.4523374,2313.3,2313.2,10.12828176]
[1726487863373,0.4523374,2313.3,2313.2,11.03013053]
[1726487863713,0.4523374,2313.3,2313.2,13.03119125]
[1726487864082,0.4523374,2313.3,2313.2,8.70818125]
[1726487865001,0.4523374,2313.3,2313.2,8.71034014]
[1726487865577,0.4523374,2313.3,2313.2,7.80849137]
[1726487869989,0.4523374,2313.3,2313.2,7.80748328]
[1726487870177,0.4523374,2313.3,2313.2,8.70933205]
[1726487870583,0.4523374,2313.3,2313.2,7.80748328]
[1726487871576,0.4523374,2313.3,2313.2,12.13049328]
[1726487877334,6.64823,2313.9,2313.3,2.4071]
[1726487877335,2.3264,2313.9,2313.3,2.4071]
[1726487877507,4.32189,2313.8,2313.4,9.68913801]
[1726487877698,4.32189,2313.8,2313.5,1.33562409]
[1726487878028,4.32189,2313.8,2313.4,4.32254]
[1726487878228,4.32189,2313.8,2313.5,2.50243181]
[1726487878399,4.32189,2313.8,2313.5,1.25489818]
[1726487878604,4.32198,2313.8,2313.5,1.25489818]
[1726487878926,4.32198,2313.8,2313.5,0.08705497]
[1726487879296,4.32198,2313.8,2313.3,7.71951741]
[1726487879500,4.32198,2313.8,2313.6,0.08680275]
[1726487879725,4.32198,2313.8,2313.3,7.63307428]
[1726487880034,4.32198,2313.8,2313.4,2.64637705]
[1726487880200,4.32198,2313.8,2313.5,0.08680275]
[1726487880392,4.32221,2313.7,2313.5,0.08680275]
[1726487880593,4.32221,2313.7,2313.3,6.72988]
[1726487880866,4.32221,2313.7,2313.4,0.08680275]
[1726487881498,6.64877,2313.6,2313.4,0.08680275]
[1726487881927,6.64877,2313.6,2313.1,6.72701]
[1726487882228,6.64877,2313.6,2313.2,1.34402822]
[1726487882429,6.64877,2313.6,2313.3,0.08651019]
[1726487882636,6.64877,2313.6,2313.1,7.63017428]
[1726487882796,6.64877,2313.6,2313.2,3.44642007]
[1726487883135,6.64877,2313.6,2313.3,1.34391598]
[1726487883437,6.64877,2313.6,2313.2,4.32297]
[1726487883632,6.64877,2313.6,2313.3,0.08651019]
[1726487884225,4.32254,2313.5,2313.3,0.08651019]
[1726487884403,4.32254,2313.5,2313.0,10.9409255]
[1726487884597,4.32254,2313.5,2313.1,3.44653244]
[1726487884796,6.64877,2313.6,2313.2,3.36002225]
[1726487885014,6.64877,2313.6,2313.1,7.23412593]
[1726487885226,6.64877,2313.6,2313.2,3.44654052]
[1726487885431,6.64877,2313.6,2313.2,0.08651019]
[1726487886299,10.97113,2313.6,2313.2,0.08651019]
[1726487886639,6.64876,2313.6,2313.2,0.08651019]
[1726487886805,6.64875,2313.6,2313.2,0.08651019]
[1726487887013,4.32248,2313.5,2313.2,0.08651019]
[1726487888698,4.32269,2313.4,2313.2,0.08651019]
[1726487889144,4.32269,2313.4,2313.0,5.22646428]
[1726487889145,4.32269,2313.4,2313.0,9.54976428]
[1726487889302,4.32269,2313.4,2313.3,0.08651019]
[1726487889500,4.32269,2313.4,2313.0,9.54976428]
[1726487889704,4.32269,2313.4,2313.3,0.08651019]
[1726487890213,4.32269,2313.4,2313.0,5.22646428]
[1726487890419,4.32269,2313.4,2313.1,3.44793769]
[1726487890629,4.32269,2313.4,2313.2,1.34460769]
[1726487890828,4.32269,2313.4,2313.0,5.22646428]
[1726487891055,4.32269,2313.4,2313.1,3.44848485]
[1726487891243,4.32269,2313.4,2313.1,0.08651019]
[1726487891446,4.32269,2313.4,2313.2,1.34475466]
[1726487891635,4.32269,2313.4,2313.0,11.25484765]
[1726487891837,4.32269,2313.4,2313.1,3.44849099]
[1726487892060,4.32269,2313.4,2313.1,0.08651019]
[1726487892231,4.32248,2313.5,2313.1,0.08651019]
[1726487892563,4.32248,2313.5,2313.2,2.3863]
[1726487892971,4.77475857,2313.5,2313.2,2.3863]
[1726487893133,4.77475857,2313.5,2313.3,0.08651019]
[1726487893332,0.45227857,2313.5,2313.3,0.08651019]
[1726487896680,0.45227857,2313.5,2313.3,4.4956378]
[1726487896832,0.45227857,2313.5,2313.4,1.12048578]
[1726487897154,0.45227857,2313.5,2313.4,2.55242566]
[1726487897363,0.45227857,2313.5,2313.4,4.65643584]
[1726487898083,0.45227857,2313.5,2313.4,4.65683051]
[1726487898574,0.45227857,2313.5,2313.4,5.55999479]
[1726487899650,0.45227857,2313.5,2313.4,5.56052239]
[1726487899850,0.45227857,2313.5,2313.4,9.8831614]
[1726487900174,0.45227857,2313.5,2313.4,9.79671906]
[1726487900578,0.45227857,2313.5,2313.4,14.11935906]
[1726487900737,0.45227857,2313.5,2313.4,12.26671906]
[1726487902642,0.45227857,2313.5,2313.4,15.41235543]
[1726487902844,0.45227857,2313.5,2313.4,12.04873928]
[1726487903069,0.45227857,2313.5,2313.4,15.4129617]
[1726487903377,0.45227857,2313.5,2313.4,12.26778818]
[1726487903875,0.45227857,2313.5,2313.4,15.41334921]
[1726487904088,0.45227857,2313.5,2313.4,11.36416188]
[1726487904258,0.45227857,2313.5,2313.4,15.4133004]
[1726487908127,0.45227857,2313.5,2313.4,15.4139387]
[1726487910951,0.45227857,2313.5,2313.4,15.41401175]
[1726487911995,0.45227857,2313.5,2313.4,15.41377187]
[1726487912202,0.45227857,2313.5,2313.4,11.36480018]
[1726487912402,0.45227857,2313.5,2313.4,8.62116529]
[1726487912627,0.45227857,2313.5,2313.4,5.47587853]
[1726487912800,0.45227857,2313.5,2313.4,5.47556131]
[1726487913015,0.45227857,2313.5,2313.4,4.57187949]
[1726487913245,0.45227857,2313.5,2313.4,5.47552791]
[1726487913415,0.45227857,2313.5,2313.4,4.35504213]
[1726487913617,2.77867857,2313.5,2313.4,3.45139371]
[1726487914421,2.77867857,2313.5,2313.4,1.43264519]
[1726487914622,2.77867857,2313.5,2313.4,3.45155139]
[1726487915150,2.77867857,2313.5,2313.4,0.89696318]
[1726487916439,2.77867857,2313.5,2313.4,2.91357]
[1726487916941,2.77867857,2313.5,2313.4,0.89696318]
[1726487917148,2.77867857,2313.5,2313.4,2.91358179]
[1726487917347,2.77867857,2313.5,2313.4,0.89696318]
[1726487917838,2.77867857,2313.5,2313.4,0.08356599]
[1726487918042,2.77867857,2313.5,2313.4,2.10014336]
[1726487919136,2.77867857,2313.5,2313.4,0.08356599]
[1726487919337,2.77867857,2313.5,2313.4,2.10012489]
[1726487919540,2.77867857,2313.5,2313.4,0.08356599]
[1726487919913,2.77867857,2313.5,2313.3,0.90364842]
[1726487920124,2.77867857,2313.5,2313.4,2.09996444]
[1726487920446,0.45227857,2313.5,2313.4,2.09989458]
[1726487920653,0.45227857,2313.5,2313.4,0.08356599]
[1726487921239,0.45227857,2313.5,2313.1,8.64621]
[1726487921446,0.45227857,2313.5,2313.2,0.08392916]
[1726487921616,0.45227857,2313.5,2313.3,2.91984844]
[1726487921816,0.45227857,2313.5,2313.4,2.01623439]
[1726487922123,0.45227857,2313.5,2313.4,2.10014337]
[1726487922762,0.45227857,2313.5,2313.4,3.00375742]
[1726487923050,0.45227857,2313.5,2313.4,2.10014337]
[1726487925539,0.45227857,2313.5,2313.4,3.00375742]
[1726487926959,0.45227857,2313.5,2313.4,7.32639742]
[1726487927264,0.45227857,2313.5,2313.4,9.33073225]
[1726487927463,0.45227857,2313.5,2313.4,12.4699625]
[1726487927638,0.45227857,2313.5,2313.4,19.17225838]
[1726487928158,0.45227857,2313.5,2313.4,15.12941408]
[1726487928516,0.45227857,2313.5,2313.4,19.17144778]
[1726487928825,0.45227857,2313.5,2313.4,19.16994683]
[1726487929029,5.3264,2313.9,2313.6,4.32226]
[1726487929228,0.4522325,2313.7,2313.6,4.32226]
[1726487929525,0.4522325,2313.7,2313.6,6.33692256]
[1726487929729,0.4522325,2313.7,2313.6,7.23979846]
[1726487929962,0.4522325,2313.7,2313.6,9.31772232]
[1726487931558,0.4522325,2313.7,2313.6,8.41484642]
[1726487933742,0.4522325,2313.7,2313.6,8.41469794]
[1726487934378,0.4522325,2313.7,2313.6,8.49846569]
[1726487935032,0.4522325,2313.7,2313.6,9.84141343]
[1726487935536,0.4522325,2313.7,2313.6,5.51915343]
[1726487935751,0.4522325,2313.7,2313.6,3.44122957]
[1726487936273,0.4522325,2313.7,2313.6,7.76348957]
[1726487938781,0.4522325,2313.7,2313.6,7.7634961]
[1726487938928,0.4522325,2313.7,2313.6,8.666372]
[1726487939950,0.4522325,2313.7,2313.6,7.7634961]
[1726487940147,0.4522325,2313.7,2313.6,8.666372]
[1726487942650,0.4522325,2313.7,2313.6,7.7634961]
[1726487943472,0.4522325,2313.7,2313.6,8.666372]
[1726487944573,0.4522325,2313.7,2313.6,7.7634961]
[1726487944782,0.4522325,2313.7,2313.6,4.344112]
[1726487945697,0.4522325,2313.7,2313.6,3.4412361]
[1726487952282,0.4522325,2313.7,2313.6,3.44276855]
[1726487955094,0.4522325,2313.7,2313.6,3.44264418]
[1726487957106,0.4522325,2313.7,2313.6,3.44274865]
[1726487958663,0.4522325,2313.7,2313.6,0.08376775]
[1726487958664,4.7743125,2313.7,2313.6,0.08376775]
[1726487958818,5.48435375,2313.7,2313.6,0.08376775]
[1726487959023,5.48435375,2313.7,2313.4,0.9028759]
[1726487959340,5.48435375,2313.7,2313.5,3.35950205]
[1726487959523,5.48435375,2313.7,2313.6,0.08056559]
[1726487959722,5.48435375,2313.7,2313.4,0.9028759]
[1726487959924,5.48435375,2313.7,2313.5,1.42434786]
[1726487960180,0.84497303,2313.6,2313.5,0.08056559]
[1726487960458,0.84497303,2313.6,2313.5,3.44223205]
[1726487960658,4.7743125,2313.7,2313.5,3.44223205]
[1726487960823,4.7743125,2313.7,2313.5,0.08056559]
[1726487961761,4.7743525,2313.7,2313.6,1.34481123]
[1726487962057,4.7743525,2313.7,2313.6,1.34484256]
[1726487962355,4.7743525,2313.7,2313.6,1.42540815]
[1726487963567,4.7743525,2313.7,2313.6,0.08056559]
[1726487963734,4.7743525,2313.7,2313.6,1.42555368]
[1726487967168,4.7743525,2313.7,2313.6,1.42581903]
[1726487968030,4.7743525,2313.7,2313.6,3.44380654]
[1726487968949,4.7743525,2313.7,2313.6,3.44391548]
[1726487972072,0.4522325,2313.7,2313.6,3.44391548]
[1726487977027,0.4522325,2313.7,2313.6,3.44438662]
[1726487987084,0.4522325,2313.7,2313.6,3.4447572]
[1726487987245,0.4522325,2313.7,2313.6,4.3476331]
[1726487987658,0.4522325,2313.7,2313.6,3.4447572]
[1726487988001,0.4522325,2313.7,2313.6,4.3476331]
[1726487988163,0.4522325,2313.7,2313.6,5.57865052]
[1726487991049,0.4522325,2313.7,2313.6,4.3476331]
[1726487992095,0.4522325,2313.7,2313.6,4.34757482]
[1726487994067,0.4522325,2313.7,2313.6,3.44469892]
[1726488000904,0.4522325,2313.7,2313.6,3.44170419]
[1726488002407,4.7743125,2313.7,2313.6,3.44170419]
[1726488002758,11.4227925,2313.7,2313.6,0.08056559]
[1726488002958,11.4227925,2313.7,2313.6,1.42553732]
[1726488003185,11.4227925,2313.7,2313.6,0.08056559]
[1726488004307,24.20447027,2313.7,2313.6,0.08056559]
[1726488004492,43.24821427,2313.7,2313.6,0.08056559]
[1726488004668,42.6606965,2313.7,2313.6,0.08056559]
[1726488005066,47.6684069,2313.7,2313.6,0.08056559]
[1726488006014,47.08088913,2313.7,2313.6,0.08056559]
[1726488006372,51.64288913,2313.7,2313.6,0.08056559]
[1726488007825,52.2304069,2313.7,2313.6,0.08056559]
[1726488007989,51.64288913,2313.7,2313.6,0.08056559]
[1726488008922,51.64288913,2313.7,2312.4,2.476]
[1726488008923,4.32423,2312.6,2312.4,2.476]
[1726488010507,4.32423,2312.6,2312.2,0.9028759]
[1726488010508,4.32432,2312.5,2312.2,2.3434]
[1726488011197,4.32451,2312.4,2312.2,2.3434]
[1726488012727,8.64855,2312.6,2312.2,2.3434]
[1726488012893,4.32423,2312.6,2312.2,2.3434]
[1726488013098,3.0,2313.0,2312.4,1.94234052]
[1726488013099,4.32392,2312.8,2312.4,1.94234052]
[1726488013333,2.2516,2313.0,2312.7,1.94234052]
[1726488013654,4.32297,2313.3,2312.9,1.94234052]
[1726488013655,4.32296,2313.3,2312.9,1.94234052]
[1726488013802,4.42030263,2313.7,2313.2,2.4191]
[1726488014001,4.42030263,2313.7,2313.3,1.94234052]
[1726488014337,4.42030263,2313.7,2313.3,7.13350357]
[1726488014338,0.09811263,2313.7,2313.3,7.13350357]
[1726488014689,0.09811263,2313.7,2313.3,2.81079357]
[1726488015028,0.45233219,2313.6,2313.3,2.89724231]
[1726488015342,0.45233219,2313.6,2313.4,0.53163423]
[1726488016939,0.45233219,2313.6,2313.5,2.4255]
[1726488017642,0.45233219,2313.6,2313.5,2.49082731]
[1726488020339,4.77459219,2313.6,2313.5,0.06532731]
[1726488020646,4.77459219,2313.6,2313.1,2.3993]
[1726488020790,4.77459219,2313.6,2313.5,0.06363274]
[1726488021148,4.77459219,2313.6,2313.1,2.3993]
[1726488021326,4.77459219,2313.6,2313.5,0.06363274]
[1726488021327,0.45233219,2313.6,2313.5,0.06363274]
[1726488021534,0.45233219,2313.6,2313.2,4.40944201]
[1726488021729,0.45233219,2313.6,2313.5,0.06363274]
[1726488022040,0.45233219,2313.6,2313.5,0.06345298]
[1726488022211,0.45233219,2313.6,2313.5,2.4474]
[1726488022532,0.45233219,2313.6,2313.5,2.51085298]
[1726488023943,4.77459219,2313.6,2313.5,0.06345298]
[1726488024146,5.55203341,2313.6,2313.5,0.06345298]
[1726488024298,5.55203341,2313.6,2313.1,2.298]
[1726488024500,4.77459219,2313.6,2313.5,0.06330172]
[1726488024699,4.32249,2313.5,2313.1,2.298]
[1726488024902,9.09703219,2313.6,2313.1,2.298]
[1726488025217,4.77459219,2313.6,2313.1,2.298]
[1726488025539,9.09699219,2313.6,2313.1,2.298]
[1726488025740,4.77459219,2313.6,2313.1,2.298]
[1726488025913,4.32249,2313.5,2313.1,2.298]
[1726488026819,4.32296,2313.3,2312.9,2.4584]
[1726488027764,4.32274,2313.4,2312.9,2.4584]
[1726488027765,4.32273,2313.4,2312.9,2.4584]
[1726488028066,4.32284,2313.3,2312.9,2.4584]
[1726488029183,4.32284,2313.3,2313.0,0.06330172]
[1726488029379,2.2693,2313.5,2313.0,1.18020089]
[1726488029529,4.32245,2313.5,2313.1,2.3826]
[1726488029729,4.32245,2313.5,2313.1,3.26239676]
[1726488030089,4.32245,2313.5,2313.2,0.06366479]
[1726488030291,4.77474219,2313.6,2313.2,0.06366479]
[1726488030958,4.77468219,2313.6,2313.2,0.06366479]
[1726488032659,4.77468219,2313.6,2313.2,0.15011616]
[1726488032872,0.45233219,2313.6,2313.2,5.8732365]
[1726488033074,0.45233219,2313.6,2313.3,6.59099]
[1726488033745,0.45233219,2313.6,2313.4,0.06366479]
[1726488034785,4.77460219,2313.6,2313.4,0.06366479]
[1726488035782,0.45233219,2313.6,2313.4,0.06366479]
[1726488036299,4.77461219,2313.6,2313.4,0.06366479]
[1726488037390,0.45233219,2313.6,2313.4,0.06366479]
[1726488037579,0.45233219,2313.6,2313.4,5.48407127]
[1726488037881,0.45233219,2313.6,2313.4,1.16144127]
[1726488041290,0.45233219,2313.6,2313.4,0.06366479]
[1726488041516,4.77465219,2313.6,2313.4,0.06366479]
[1726488041811,4.77460219,2313.6,2313.1,11.0571]
[1726488042022,7.10100219,2313.6,2313.2,0.06334205]
[1726488043469,7.10100219,2313.6,2313.2,4.38633205]
[1726488043685,7.10100219,2313.6,2313.2,0.06334205]
[1726488043917,4.77460219,2313.6,2313.2,1.17538526]
[1726488044276,4.77460219,2313.6,2313.2,5.49839526]
[1726488044621,4.77460219,2313.6,2313.2,1.17538526]
[1726488044622,0.45233219,2313.6,2313.2,1.17538526]
[1726488044920,4.77460219,2313.6,2313.2,1.17538526]
[1726488045094,9.09700219,2313.6,2313.2,1.17538526]
[1726488045975,4.77460219,2313.6,2313.2,1.17538526]
[1726488047298,4.77460219,2313.6,2313.2,5.49837526]
[1726488047976,0.45233219,2313.6,2313.2,5.49837526]
[1726488048177,0.45233219,2313.6,2313.3,1.41748058]
[1726488048525,0.45233219,2313.6,2313.4,0.06344289]
[1726488050379,4.77463219,2313.6,2313.4,0.06344289]
[1726488050700,4.77463219,2313.6,2313.2,4.32299]
[1726488050904,4.77463219,2313.6,2313.5,0.06340256]
[1726488051086,4.77463219,2313.6,2313.1,11.05709]
[1726488051288,4.77463219,2313.6,2313.5,0.06340256]
[1726488051497,4.77463219,2313.6,2313.2,4.32301]
[1726488051697,0.45233219,2313.6,2313.5,0.06340256]
[1726488051896,0.45233219,2313.6,2313.2,4.32301]
[1726488052128,0.45233219,2313.6,2313.5,0.06340256]
[1726488052330,0.45233219,2313.6,2313.2,4.32301]
[1726488052796,0.45233219,2313.6,2313.3,0.06340256]
[1726488055709,0.45233219,2313.6,2313.4,2.2803]
[1726488056103,0.45233219,2313.6,2313.5,0.06354373]
[1726488056474,0.45233219,2313.6,2313.2,10.92615]
[1726488056673,0.45233219,2313.6,2313.5,0.06353364]
[1726488056878,0.45233219,2313.6,2313.2,10.92615]
[1726488057044,0.45233219,2313.6,2313.5,0.06353364]
[1726488057245,0.45233219,2313.6,2313.2,12.10905259]
[1726488057579,0.45233219,2313.6,2313.5,0.06353364]
[1726488057778,0.45233219,2313.6,2313.2,10.92615]
[1726488057940,0.45233219,2313.6,2313.5,0.06356389]
[1726488058146,0.45233219,2313.6,2313.2,10.92615]
[1726488058391,0.45233219,2313.6,2313.5,0.06352356]
[1726488058553,0.45233219,2313.6,2313.2,11.8290259]
[1726488058759,0.45233219,2313.6,2313.5,0.06352356]
[1726488058960,0.45233219,2313.6,2313.2,11.8290259]
[1726488059163,0.45233219,2313.6,2313.5,0.06352356]
[1726488059363,0.45233219,2313.6,2313.2,11.8290259]
[1726488059687,0.45233219,2313.6,2313.3,1.34689542]
[1726488059869,0.45233219,2313.6,2313.3,0.06352356]
[1726488060289,4.77460219,2313.6,2313.3,0.06352356]
[1726488060857,2.3264,2313.4,2313.3,0.06352356]
[1726488061271,2.3264,2313.4,2313.0,7.6807559]
[1726488061569,6.64907,2313.4,2313.3,0.06351347]
[1726488061770,6.64907,2313.4,2313.0,7.6807559]
[1726488061987,7.10162281,2313.4,2313.3,0.06351347]
[1726488062184,7.10162281,2313.4,2313.0,7.6807559]
[1726488062384,7.10162281,2313.4,2313.3,0.06351347]